[Event "Super United Croatia GCT Rapid 2022"]
[Site "Zagreb"]
[Date "2022.07.21"]
[Round "4.1"]
[White "Vachier-Lagrave, Maxime"]
[Black "Van Foreest, Jorden"]
[Result "1/2-1/2"]
[ECO "B13"]
[WhiteElo "2760"]
[BlackElo "2678"]
[Annotator "TA"]
[PlyCount "208"]
[EventDate "2022.07.20"]
[EventType "tourn"]
[EventCountry "CRO"]
[SourceTitle "playchess.com"]
[Source "ChessBase"]
[SourceQuality "1"]
[TimeControl "1500+10"]

{[%evp 24,207,37,35,30,24,25,24,25,23,22,9,10,11,12,2,9,2,4,10,24,20,31,26,31,0,13,13,10,0,32,0,0,0,0,-28,-16,-16,56,0,0,0,40,40,39,42,43,50,87,0,0,0,0,0,0,0,0,0,71,61,64,0,0,0,0,0,0,0,0,-36,-36,-36,-36,-36,-36,-36,-36,-36,-14,-15,-17,-160,-161,-169,-169,-169,-169,-169,-169,-169,-138,-145,-158,-203,-169,-169,-122,-122,-99,-91,-60,-146,-146,-169,-169,-169,-169,-169,-169,-169,-169,-169,-169,-169,-169,-169,-29,-29,0,-169,-169,-169,-169,-169,-169,-169,-169,-192,-192,-192,-169,-192,-192,-192,-192,-192,-192,-192,-169,-169,0,-192,-192,-192,-192,-192,-192,-192,-192,-192,-192,-255,-192,-255,-255,-255,-255,-255,-255,-255,-255,-255,-255,-255,-255,-255,-255,-255,-255,-255,-255,-255,-255,-255,-255,-255,-255,-255,0,0,0,-255,-36,-36,0,0]} 1. e4 {[%emt 0:00:01]} c6 {[%emt 0:00:02]} 2. d4 {[%emt 0:00:32]} d5 {[%emt 0:00:03]} 3. exd5 {[%emt 0:00:01]} cxd5 {[%emt 0:00:05]} 4. Bd3 {[%emt 0:00:02]} Nc6 {[%emt 0:00:30]} 5. c3 {[%emt 0:00:01]} Nf6 {[%emt 0:00:07]} 6. Bf4 {[%emt 0:00:03]} Bg4 {[%emt 0:00:16]} 7. Qb3 {[%emt 0:00:01]} Qd7 {[%emt 0:01:48]} 8. Nd2 {[%emt 0:00:29]} e6 {[%emt 0:00:02]} 9. Ngf3 {[%emt 0:02:24]} Bd6 {[%emt 0:00:04]} 10. Ne5 {[%emt 0:02:05]} Qc7 {[%emt 0:00:47]} 11. O-O {[%emt 0:01:04]} O-O {[%emt 0:02:41]} 12. Nxg4 {[%emt 0:01:27]} Bxf4 {[%emt 0:00:17]} 13. Nxf6+ {[%emt 0:00:02]} gxf6 {[%emt 0:00:02]} 14. Nf3 {[%emt 0:00:01]} Kh8 {[%emt 0:00:13]} 15. g3 {[%emt 0:01:05]} Rg8 {[%emt 0:00:04]} 16. Kh1 {[%emt 0:00:29]} Bd6 {[%emt 0:00:41]} 17. Rae1 {[%emt 0:00:35]} f5 {[%emt 0:02:00]} 18. Qd1 {[%emt 0:01:36]} Rg7 {[%emt 0:00:27]} 19. Nh4 {[%emt 0:01:45]} Ne7 {[%emt 0:00:10]} 20. Qe2 {[%emt 0:00:51]} Rd8 {[%emt 0:02:11]} 21. Rc1 {[%emt 0:00:30]} Nc6 {[%emt 0:03:39]} 22. f4 {[%emt 0:00:31]} a6 {[%emt 0:00:46]} 23. Nf3 {[%emt 0:00:48]} Be7 {[%emt 0:01:00]} 24. c4 {[%emt 0:02:54]} Qb6 {[%emt 0:00:37]} 25. c5 {[%emt 0:00:07]} Qc7 {[%emt 0:00:01]} 26. a3 {[%emt 0:00:19]} Bf6 {[%emt 0:00:02]} 27. Qe3 {[%emt 0:00:01]} Rdg8 {[%emt 0:00:23]} 28. Rc2 {[%emt 0:01:11]} h5 {[%emt 0:00:54]} 29. Ne5 {[%emt 0:01:14]} h4 {[%emt 0:00:48]} 30. Rg2 {[%emt 0:01:23]} Qd8 {[%emt 0:02:42]} (30... Bxe5 $11 31. dxe5 hxg3) 31. Nxc6 {[%emt 0:01:56]} ({White should play} 31. g4 $1 $14 Nxe5 32. dxe5) 31... bxc6 $11 {[%emt 0:00:02]} 32. Bxa6 {[%emt 0:00:01]} Rg6 {[%emt 0:00:09]} 33. Be2 {[%emt 0:00:16]} Qf8 {[%emt 0:01:13]} 34. Bh5 {[%emt 0:00:06]} Rh6 {[%emt 0:00:02]} 35. g4 {[%emt 0:00:07]} Qg7 {[%emt 0:00:02]} 36. Qf3 {[%emt 0:00:11]} (36. g5 $1 $16 Bxd4 37. Qf3) 36... fxg4 $11 {[%emt 0:00:38]} 37. Rxg4 {[%emt 0:00:10]} Qh7 {[%emt 0:00:12]} 38. Rxg8+ {[%emt 0:00:04]} Kxg8 {[%emt 0:00:06]} 39. Bg4 {[%emt 0:00:57]} Bxd4 {[%emt 0:00:08]} 40. f5 {[%emt 0:00:21]} Rf6 {[%emt 0:01:03]} ({Don't take} 40... Bxc5 41. Qc3 Bf8 42. Bh3 $16) (40... Bxb2 $2 41. fxe6 Kf8 42. Re1 $18) (40... e5 $11 {keeps the balance.}) 41. b4 $16 {[%emt 0:00:14]} Qh6 {[%emt 0:00:07]} 42. b5 {[%emt 0:01:05]} (42. Rd1 $14 e5 43. a4) 42... cxb5 $11 {[%emt 0:00:47]} 43. c6 {[%emt 0:00:01]} Be5 {[%emt 0:01:21]} 44. Qe2 {[%emt 0:01:07]} Bc7 {[%emt 0:00:13]} 45. Rg1 {[%emt 0:00:23]} Kf8 {[%emt 0:00:24]} (45... Bb6 $2 46. fxe6 $1 fxe6 47. Bxe6+ Kf8 48. Bd7 $1 Bxg1 49. c7 $18) 46. Qxb5 {[%emt 0:01:18]} Qf4 {[%emt 0:00:07]} 47. Qb4+ {[%emt 0:00:09]} Qxb4 {[%emt 0:00:09]} 48. axb4 {[%emt 0:00:01]} exf5 {[%emt 0:00:01]} 49. Bf3 {[%emt 0:00:01]} Rxc6 {[%emt 0:00:05]} 50. Bxd5 {[%emt 0:00:02]} Rc2 {[%emt 0:00:11]} 51. Rg2 {[%emt 0:00:01]} Rc3 {[%emt 0:00:02]} 52. Ra2 {[%emt 0:00:28]} (52. Rg5 $1 $11) 52... h3 $17 {[%emt 0:00:11]} 53. Kg1 {[%emt 0:00:01]} Rc1+ {[%emt 0:00:23]} 54. Kf2 {[%emt 0:00:01]} Bxh2 {[%emt 0:00:02]} 55. Ra3 {[%emt 0:00:16] [#]} Bg1+ $1 {[%emt 0:00:36]} 56. Kg3 {[%emt 0:00:30]} h2 {[%emt 0:00:04]} 57. Kg2 {[%emt 0:00:17]} Rd1 {[%emt 0:00:04]} 58. Bf3 {[%emt 0:00:09]} Rd2+ {[%emt 0:00:07]} 59. Kh1 {[%emt 0:00:02]} Bd4 {[%emt 0:00:41]} ({Better is} 59... Rb2 $19 60. Ra5 Bb6 61. Rxf5 Bc7) 60. Rb3 {[%emt 0:00:08]} Ke7 {[%emt 0:00:30]} 61. b5 {[%emt 0:00:10]} Bb6 {[%emt 0:00:02]} 62. Rc3 {[%emt 0:00:25]} (62. Rb1 $15) 62... Rb2 $17 {[%emt 0:00:20]} 63. Bg2 {[%emt 0:00:02]} Bd4 {[%emt 0:00:18]} 64. Rf3 {[%emt 0:00:15]} Be5 {[%emt 0:00:27]} 65. Rxf5 {[%emt 0:00:05]} Rxb5 {[%emt 0:00:05]} 66. Rf1 {[%emt 0:00:02]} Rc5 {[%emt 0:00:33]} 67. Bh3 {[%emt 0:00:10]} Rc3 {[%emt 0:00:14]} 68. Bg2 {[%emt 0:00:02]} Ke6 {[%emt 0:00:01]} 69. Rf3 {[%emt 0:00:04]} Rc5 {[%emt 0:00:25]} (69... Rc2 $19 {...Rc1+ is the strong threat.} 70. Bh3+ Ke7) 70. Bh3+ $11 {[%emt 0:00:02]} Ke7 {[%emt 0:00:01]} (70... Kd6 $11) 71. Rf1 $19 {[%emt 0:00:03]} f6 {[%emt 0:00:01]} 72. Bg2 {[%emt 0:00:02]} Kf7 {[%emt 0:00:03]} 73. Be4 {[%emt 0:00:06]} Kg7 {[%emt 0:00:04]} 74. Bg2 {[%emt 0:00:15]} Kh6 {[%emt 0:00:05]} 75. Rf3 {[%emt 0:00:02]} Kg5 {[%emt 0:00:05]} 76. Rf1 {[%emt 0:00:01]} Bf4 {[%emt 0:00:13]} 77. Rf3 {[%emt 0:00:04]} f5 {[%emt 0:00:13]} 78. Bh3 {[%emt 0:00:22]} Rc1+ {[%emt 0:00:08]} 79. Rf1 {[%emt 0:00:02]} Rc3 {[%emt 0:00:02]} 80. Bg2 {[%emt 0:00:07]} Kg4 {[%emt 0:00:15]} 81. Bf3+ {[%emt 0:00:07]} Kg5 {[%emt 0:00:30]} ({Worse is} 81... Rxf3 82. Rxf3 Kxf3 $11) 82. Bg2 $1 {[%emt 0:00:02]} Bg3 {[%emt 0:00:38]} 83. Bh3 {[%emt 0:00:07]} f4 {[%emt 0:00:01]} 84. Bg2 {[%emt 0:00:00]} Rc2 {[%emt 0:00:02]} 85. Be4 {[%emt 0:00:12]} Rd2 {[%emt 0:00:01]} 86. Bf3 {[%emt 0:00:11]} Kh4 {[%emt 0:00:04]} 87. Bg2 {[%emt 0:00:23]} (87. Be4 $142) 87... Rb2 {[%emt 0:00:13]} 88. Rf3 {[%emt 0:00:20]} (88. Be4 {was worth a try.}) 88... Kg4 $19 {[%emt 0:00:01]} 89. Rf1 {[%emt 0:00:01]} Bf2 {[%emt 0:00:03]} 90. Bc6 {[%emt 0:01:05]} (90. Kxh2 {gets mated.} f3 91. Bxf3+ Kxf3 92. Ra1 Rb8 93. Ra3+ Be3 94. Rxe3+ Kxe3 95. Kg3 Rb4 96. Kg2 Rg4+ 97. Kh3 Kf3 98. Kh2 Rg8 99. Kh1 Kf2 100. Kh2 Rh8#) 90... Kg3 {[%emt 0:00:05]} 91. Bd5 {[%emt 0:00:03]} Rb6 {[%emt 0:00:15]} 92. Be4 {[%emt 0:00:05]} Rb5 {[%emt 0:00:02]} 93. Bc6 {[%emt 0:00:02]} Rg5 {[%emt 0:00:02]} 94. Bb7 {[%emt 0:00:13]} Rg7 {[%emt 0:01:24]} 95. Bd5 {[%emt 0:00:03]} Re7 {[%emt 0:00:06]} 96. Bc6 {[%emt 0:00:07]} Re2 {[%emt 0:00:12]} 97. Bd5 {[%emt 0:00:09]} Rd2 {[%emt 0:00:12]} 98. Bc6 {[%emt 0:00:07]} f3 {[%emt 0:00:05]} 99. Be4 {[%emt 0:00:14]} Kf4 {[%emt 0:00:03]} 100. Bb7 {[%emt 0:00:02]} Ke3 $2 {[%emt 0:00:02]} (100... Rc2 $19 {And now ...Ra2 would win.} 101. Ba8 Rb2) 101. Rb1 $11 {[%emt 0:00:40]} Rd3 {[%emt 0:00:12]} (101... Bg1 $5) 102. Bc6 $2 {[%emt 0:00:36][%mdl 8192] [#]} (102. Kxh2 $11 {and White is okay.} Kf4 103. Rb5) 102... Bg3 $2 {[%emt 0:00:27]} (102... Kf4 $1 $19 103. Rf1 Rc3) 103. Bxf3 $1 $15 {[%emt 0:00:02]} Kxf3 {[%emt 0:00:06]} 104. Rb3 $1 {[%emt 0:00:01]} Rxb3 {[%emt 0:00:03]} 1/2-1/2

[Event "Super United Croatia GCT Rapid 2022"]
[Site "Zagreb"]
[Date "2022.07.21"]
[Round "4.2"]
[White "Saric, Ivan"]
[Black "So, Wesley"]
[Result "0-1"]
[ECO "C65"]
[WhiteElo "2680"]
[BlackElo "2773"]
[Annotator "TA"]
[PlyCount "140"]
[EventDate "2022.07.20"]
[EventType "tourn"]
[EventCountry "CRO"]
[SourceTitle "playchess.com"]
[Source "ChessBase"]
[SourceQuality "1"]
[TimeControl "1500+10"]

{[%evp 12,140,13,0,0,11,2,7,17,6,20,0,0,0,0,0,0,0,0,-2,0,0,-7,-22,-28,-22,-16,-24,-16,-31,-33,-28,-28,-31,-9,-114,-12,-127,0,0,0,0,0,-17,40,0,0,0,0,0,0,0,0,0,0,-7,-7,-7,0,-11,-11,-11,-11,-36,-10,-137,-137,-165,-165,-477,-477,-3118,-3762,-2012,-1000,-571,-571,-1950,-1950,-29965,-29966,-29965,-29959,-29974,-29973,-29974,-29975,-29975,-29976,-29975,-29976,-29979,-29979,-29979,-29978,-29982,-29981,-29981,-29975,-29975,-29971,-29970,-29970,-29977,-29969,-29964,-29969,-29966,-29967,-12514,-5454,-29981,-29982,-29983,-29982,-29984,-29985,-29985,-29983,-29983,-29984,-29984,-29985,-29985,-29986,-29986,-29986,-29986,-29987,-29987,-29988]} 1. e4 {[%emt 0:00:01]} e5 {[%emt 0:00:03]} 2. Nf3 {[%emt 0:00:02]} Nc6 {[%emt 0:00:02]} 3. Bb5 {[%emt 0:00:06]} Nf6 {[%emt 0:00:03]} 4. d3 {[%emt 0:00:02]} Bc5 {[%emt 0:00:11]} 5. c3 {[%emt 0:00:14]} O-O {[%emt 0:00:09]} 6. O-O {[%emt 0:00:11]} d6 {[%emt 0:00:03]} 7. Bg5 {[%emt 0:00:13] 7.Re1 is setting a new trend.} h6 {[%emt 0:00:13] C65: Ruy Lopez: Berlin Defence (3...Nf6), unusual lines and 4 0-0 Bc5.} 8. Bh4 {[%emt 0:00:02]} g5 {[%emt 0:00:02]} 9. Bg3 {[%emt 0:00:01]} Nh5 {[%emt 0:00:02] The position is equal.} 10. Nbd2 {[%emt 0:00:20]} Qf6 {[%emt 0:00:01]} 11. Bxc6 {[%emt 0:03:54]} bxc6 {[%emt 0:00:03]} 12. d4 {[%emt 0:00:18]} exd4 {[%emt 0:00:07]} 13. e5 {[%emt 0:00:08]} Qg7 {[%emt 0:00:04]} 14. cxd4 {[%emt 0:00:07]} Bb6 {[%emt 0:00:02] [#]} 15. Nc4 $146 {[%emt 0:01:16]} ({Predecessor:} 15. a4 a5 16. Nc4 Be6 17. Rc1 Nxg3 18. hxg3 Bxc4 19. Rxc4 Rad8 20. Re1 Rfe8 21. exd6 Rxe1+ 22. Qxe1 Rxd6 23. Rxc6 Rxc6 {1-0 (34) Caruana,F (2800)-Howell,D (2658) Riga 2021}) 15... Be6 {[%emt 0:01:32]} 16. Rc1 {[%emt 0:00:41]} g4 {[%emt 0:05:01]} 17. Nh4 {[%emt 0:00:12]} Nxg3 {[%emt 0:00:29]} 18. hxg3 {[%emt 0:00:12]} Rad8 {[%emt 0:00:19]} (18... Rfd8 {is more complex.} 19. Qc2 Bxd4 20. exd6 cxd6 21. Nf5 Bxf5 22. Qxf5 Qg6) 19. Nxb6 {[%emt 0:06:21]} axb6 {[%emt 0:00:12]} 20. Qe2 {[%emt 0:00:48]} dxe5 {[%emt 0:00:21]} 21. dxe5 {[%emt 0:00:01]} c5 {[%emt 0:00:27]} 22. b4 $1 {[%emt 0:01:12]} c4 {[%emt 0:01:32]} 23. Rfe1 {[%emt 0:03:56] [#]} (23. Qe4 $11) 23... Qg5 {[%emt 0:01:13]} (23... b5 $1 $17 {Threatening ...Qg5.} 24. Qe4 Qg5) 24. Qe4 {[%emt 0:00:41] [#]} (24. Rxc4 $11 {remains equal.} Rd2 25. Qe4) 24... Ra8 {[%emt 0:03:16]} ({Black should play} 24... b5 $1 $17 25. Rcd1 Ra8) 25. Rxc4 $11 {[%emt 0:00:20]} Bxc4 {[%emt 0:01:39]} 26. Qxc4 {[%emt 0:00:01]} Rae8 {[%emt 0:01:08]} 27. Qxc7 {[%emt 0:02:02]} Re6 {[%emt 0:00:09]} (27... Qd2 $11 28. Kf1 Rc8 29. Qxb6 (29. Qd6 Rc2 $17) 29... Rc1) 28. a4 {[%emt 0:00:54]} Rfe8 {[%emt 0:00:46][%cal Re6e5]} 29. Kh2 {[%emt 0:00:13]} Rxe5 {[%emt 0:04:37]} 30. Rxe5 {[%emt 0:00:09]} Rxe5 {[%emt 0:00:52]} 31. Qxb6 {[%emt 0:00:33][%mdl 4096] Endgame KQR-KQN} Re1 {[%emt 0:00:02]} 32. Qb8+ {[%emt 0:01:21]} Kg7 {[%emt 0:01:14] ( -> ...Qc1)} 33. Qc7 {[%emt 0:00:25]} Qc1 {[%emt 0:02:30][%csl Gc1][%cal Re1h1]} 34. Nf5+ {[%emt 0:00:10]} Kg6 {[%emt 0:01:26][%csl Gc1][%cal Re1h1]} 35. Ne7+ {[%emt 0:00:22]} Kg5 {[%emt 0:00:31][%csl Gc1][%cal Re1h1] Chess con chili.} 36. Qxc1+ $1 {[%emt 0:00:14]} ({Wrong is} 36. Qa5+ $2 Kf6 37. Qb6+ Kxe7 $19) 36... Rxc1 {[%emt 0:00:01] KR-KN} 37. b5 {[%emt 0:00:08]} (37. a5 $5 {[%cal Ra5a6]} Kf6 38. Ng8+ Ke6 39. Nxh6 $15) 37... Kf6 {[%emt 0:00:03][%mdl 1024] Black has compensation.} (37... Rb1 $5 {[%cal Rh6h5]}) 38. Nc6 {[%emt 0:00:11] White is now going downhill.} (38. Ng8+ $11 {was the only way to keep the balance.} Ke6 39. Nxh6) 38... Rb1 $17 {[%emt 0:00:22]} 39. f3 {[%emt 0:01:08]} h5 {[%emt 0:00:02]} 40. f4 $2 {[%emt 0:00:08]} (40. Nb8) 40... Ke6 $19 {[%emt 0:00:31] White must now prevent ...Kd6.} 41. a5 {[%emt 0:00:11]} (41. Ne5 $142 Rb3 42. Nc6) 41... Kd6 {[%emt 0:00:01]} 42. a6 {[%emt 0:00:07]} Kc7 {[%emt 0:00:02]} (42... Kc5 $142 43. Nd8 f6 44. Ne6+ Kb6) 43. a7 {[%emt 0:00:46]} Kb7 {[%emt 0:00:08]} 44. Nd8+ {[%emt 0:01:15]} Kxa7 {[%emt 0:00:01] Threatens to win with ...Kb6.} 45. Nxf7 {[%emt 0:00:01]} Kb6 {[%emt 0:00:20]} 46. Ng5 {[%emt 0:00:58]} Kxb5 {[%emt 0:00:10]} 47. Ne4 {[%emt 0:00:06]} Re1 {[%emt 0:00:25]} 48. Nf6 {[%emt 0:00:14]} Re6 {[%emt 0:00:04]} 49. Nd7 {[%emt 0:00:10]} Kc4 {[%emt 0:00:06]} 50. Kg1 {[%emt 0:00:11]} Kd4 {[%emt 0:00:04]} 51. Kf2 {[%emt 0:00:02]} Ra6 {[%emt 0:00:08]} 52. Ne5 {[%emt 0:00:06]} Ke4 {[%emt 0:00:05]} 53. Kf1 {[%emt 0:00:20]} Ra3 {[%emt 0:00:45]} 54. Kf2 {[%emt 0:00:04]} Rc3 {[%emt 0:00:01]} 55. Ng6 {[%emt 0:00:11]} Rc6 {[%emt 0:00:04]} 56. Nh4 {[%emt 0:00:06]} Ra6 {[%emt 0:00:09]} 57. Kg1 {[%emt 0:00:06]} Rf6 {[%emt 0:00:05]} 58. Kf2 {[%emt 0:00:03]} Kd3 {[%emt 0:00:01]} 59. Ke1 {[%emt 0:00:30]} Ra6 {[%emt 0:00:07]} 60. Kf2 {[%emt 0:00:02]} Ra2+ {[%emt 0:00:11]} (60... Ra1 $142 61. Nf5 Ra2+ 62. Kf1 Rd2) 61. Kg1 {[%emt 0:00:01]} Ke2 {[%emt 0:00:17] Black mates.} 62. Nf5 {[%emt 0:00:09]} Ra1+ {[%emt 0:00:08]} 63. Kh2 {[%emt 0:00:01]} Kf2 {[%emt 0:00:10]} 64. Nh4 {[%emt 0:00:20]} Rg1 {[%emt 0:00:31]} 65. f5 {[%emt 0:00:01]} Ra1 {[%emt 0:00:11]} 66. Ng6 {[%emt 0:00:23]} Ra6 {[%emt 0:00:12]} 67. Nf4 {[%emt 0:00:25]} Rf6 {[%emt 0:00:01]} 68. Nd3+ {[%emt 0:00:03]} Ke3 {[%emt 0:00:02]} 69. Nf4 {[%emt 0:00:03]} Rxf5 {[%emt 0:00:03]} 70. Ng6 {[%emt 0:00:04]} Kf2 {[%emt 0:00:06] Weighted Error Value: White=0.38/Black=0.23 (precise)} 0-1

[Event "Super United Croatia GCT Rapid 2022"]
[Site "Zagreb"]
[Date "2022.07.21"]
[Round "4.3"]
[White "Nepomniachtchi, Ian"]
[Black "Dominguez Perez, Leinier"]
[Result "1-0"]
[ECO "C42"]
[WhiteElo "2766"]
[BlackElo "2754"]
[Annotator "TA"]
[PlyCount "89"]
[EventDate "2022.07.20"]
[EventType "tourn"]
[EventCountry "CRO"]
[SourceTitle "playchess.com"]
[Source "ChessBase"]
[SourceQuality "1"]
[TimeControl "1500+10"]

{[%evp 16,89,35,28,29,31,43,35,39,32,29,32,40,29,37,33,37,20,17,21,21,18,14,14,15,14,14,14,18,5,22,0,3,0,18,14,30,0,0,0,0,0,0,0,0,0,0,0,0,0,0,0,0,0,0,0,0,0,0,0,0,0,396,418,404,407,408,407,362,387,483,467,1186,1139,29985,29986]} 1. e4 {[%emt 0:00:02]} e5 {[%emt 0:00:04]} 2. Nf3 {[%emt 0:00:02]} Nf6 {[%emt 0:00:06]} 3. Nxe5 {[%emt 0:00:04]} d6 {[%emt 0:00:02]} 4. Nf3 {[%emt 0:00:03]} Nxe4 {[%emt 0:00:03]} 5. d4 {[%emt 0:00:05]} d5 {[%emt 0:00:02]} 6. Bd3 {[%emt 0:00:05]} Nc6 {[%emt 0:00:07]} 7. O-O {[%emt 0:00:09][%cal Bh1f1,Bf1e1,Be1e2][%mdl 32]} Be7 {[%emt 0:00:03]} 8. Nbd2 $1 {[%emt 0:00:03][%mdl 4] now scores much better than the old 8.c4.} Bf5 {[%emt 0:00:02]} 9. Re1 {[%emt 0:00:02][%cal Rd2e4]} Nxd2 {[%emt 0:00:08] C42: Petroff Defence: 3 Nxe5 and unusual White 3rd moves.} 10. Qxd2 {[%emt 0:00:02]} Bxd3 {[%emt 0:00:03]} 11. Qxd3 {[%emt 0:00:03]} O-O {[%emt 0:00:04] White is slightly better.} 12. Re2 $5 {[%emt 0:01:16][%mdl 4] An interesting side line.} Qd7 {[%emt 0:01:49]} 13. Bf4 {[%emt 0:00:02]} Rfe8 {[%emt 0:00:05]} 14. Rae1 {[%emt 0:00:13]} Bf8 {[%emt 0:00:28]} 15. c3 {[%emt 0:01:09]} Rxe2 {[%emt 0:00:34]} 16. Rxe2 {[%emt 0:00:42]} Ne7 {[%emt 0:03:24][%cal Bc6e7,Be7f5,Bf5d6,Bd6c4][%mdl 32] [#]} 17. Ne5 $146 {[%emt 0:01:55]} ({Predecessor:} 17. h4 f6 18. Nh2 Ng6 19. Bg3 c6 20. h5 Ne7 21. Bf4 Re8 22. Re3 h6 23. Kf1 {1-0 (89) Raja,H (2423)-Kolbus,D (2320) Douglas 2017}) 17... Qf5 {[%emt 0:00:33]} 18. Qxf5 {[%emt 0:00:02]} Nxf5 {[%emt 0:00:02]} 19. Nd3 {[%emt 0:00:02]} c6 {[%emt 0:06:41]} 20. g4 {[%emt 0:00:37]} Nd6 {[%emt 0:00:40]} 21. Kf1 {[%emt 0:01:59]} b6 {[%emt 0:05:48]} 22. a4 {[%emt 0:01:17]} Rc8 {[%emt 0:00:21]} 23. Ne5 {[%emt 0:01:28]} Rc7 {[%emt 0:02:36]} 24. Nd3 {[%emt 0:01:52]} Rc8 {[%emt 0:00:30]} 25. h4 {[%emt 0:00:49]} Nc4 {[%emt 0:01:12]} 26. Nb4 {[%emt 0:03:16]} f6 {[%emt 0:01:27]} 27. Kg2 {[%emt 0:03:29]} Kf7 {[%emt 0:00:03]} 28. Kf3 {[%emt 0:00:11]} Bd6 {[%emt 0:02:10]} 29. h5 {[%emt 0:00:42]} Bxf4 {[%emt 0:00:23]} 30. Kxf4 $11 {[%emt 0:00:01][%mdl 4096] Endgame KRN-KRN} a5 {[%emt 0:00:07]} 31. Nd3 {[%emt 0:00:19]} g5+ {[%emt 0:00:13]} 32. hxg6+ {[%emt 0:00:33]} hxg6 {[%emt 0:00:01]} 33. g5 {[%emt 0:00:16]} Rh8 {[%emt 0:00:29]} 34. gxf6 {[%emt 0:00:32]} Kxf6 {[%emt 0:00:09]} 35. Kg4 {[%emt 0:00:19]} g5 {[%emt 0:00:20] Inhibits Nf4.} 36. f4 {[%emt 0:00:21]} gxf4 {[%emt 0:00:03]} 37. Nxf4 {[%emt 0:00:03]} Rg8+ {[%emt 0:00:06]} 38. Kf3 {[%emt 0:00:04] [#] Hoping for b3.} Kf5 $2 {[%emt 0:00:05][%mdl 8192]} (38... Rg1 $11 {and Black stays safe.}) 39. b3 $18 {[%emt 0:00:11]} Na3 {[%emt 0:00:25]} 40. Re5+ {[%emt 0:00:10]} Kf6 {[%emt 0:00:01]} 41. Re6+ {[%emt 0:00:01]} Kf5 {[%emt 0:00:01]} 42. Rxc6 {[%emt 0:00:05]} Nb1 {[%emt 0:00:26]} 43. Nxd5 {[%emt 0:00:07] [#] Strongly threatening Ne7+.} Nd2+ {[%emt 0:00:04]} (43... Re8 $142 44. Rf6+ Kg5 45. Rxb6 Nd2+ 46. Kf2 Ne4+ 47. Kg2 Kf5) 44. Ke3 {[%emt 0:00:08] Threatens to win with Ne7+.} Rg2 {[%emt 0:00:03]} 45. Ne7+ {[%emt 0:00:04] Weighted Error Value: White=0.03 (flawless) /Black=0.42} 1-0